{"text_format":"1","workbook":"xlsx","n_sheets":2,"sheets":["Missionary Badge Long Form","Missionary Badge Short Form"],"not_rendered":{"charts":0,"images":4,"macros":1,"external_links":0,"defined_names":2,"comments":0,"pivot_tables":0},"unopened":[],"bounds":{"document_bytes":16777216,"sheet_cells":100000,"rows_first":2000,"rows_last":500,"rows_between":2000,"halvings":0,"cell_chars":16384,"cell_head_chars":4096},"cells_cut":0,"cells_raw":0,"read":"whole","date_system":"1900"}

{"sheet":"Missionary Badge Long Form","index":0,"n_rows":82,"n_cols":13,"rows_kept":82,"cut":false,"hidden":false,"merged":[[66,5,66,7],[69,12,73,12],[17,11,17,12],[17,9,17,10],[17,6,17,8],[17,1,17,5],[19,1,19,8],[18,1,18,8],[18,9,19,12],[20,1,20,8],[20,9,20,11],[21,5,24,7],[21,8,24,8],[21,1,24,4],[25,1,25,4],[26,1,26,4],[6,8,6,12],[0,1,0,12],[5,1,5,7],[5,8,5,12],[1,1,1,12],[2,1,2,12],[3,1,3,12],[7,1,7,2],[7,3,7,4],[7,5,7,6],[7,8,7,12],[8,1,8,2],[8,3,8,4],[8,5,8,7],[8,8,8,12],[9,8,9,12],[10,8,10,12],[11,1,11,3],[11,4,11,12],[12,1,12,7],[12,8,12,12],[9,1,9,4],[10,1,10,4],[13,8,13,9],[14,1,14,10],[14,11,14,12],[16,1,16,5],[16,6,16,8],[16,9,16,10],[16,11,16,12],[74,1,74,5],[75,11,75,12],[76,9,76,10],[76,11,76,12],[67,5,67,7],[79,8,79,12],[80,8,80,12],[81,8,81,12],[70,6,71,7],[73,6,73,7],[27,1,27,4],[28,1,28,4],[29,1,29,4],[30,1,30,4],[31,1,31,4],[32,1,32,4],[33,1,33,4],[34,1,34,4],[35,1,35,4],[36,1,36,4],[37,1,37,4],[38,1,38,4],[39,1,39,4],[40,1,40,4],[41,1,41,4],[42,1,42,4],[43,1,43,4],[44,1,44,4],[45,1,45,4],[46,1,46,4],[47,1,47,4],[48,1,48,4],[49,1,49,4],[50,1,50,4],[51,1,51,4],[62,1,62,4],[63,1,63,4],[64,1,64,4],[6,1,6,7],[13,1,13,7],[15,1,15,12],[57,1,57,4],[58,1,58,4],[59,1,59,4],[60,1,60,4],[61,1,61,4],[52,1,52,4],[53,1,53,4],[54,1,54,4],[55,1,55,4],[56,1,56,4]]}
[null,"Service Missionary & Non-Missionary Name Tag Order"]
[null,"Attention: All orders must be billed to Church units exclusively through the Church’s Internal Record of Purchase (IROP) system."]
[null,"Insert the associated Unit Name & # as recorded in the Church Directory of Organization and Leadership (CDOL) in the boxes below. "]
[null,"The unit number can also be found on the monthly CFAR bank statement."]
[null,"Billing Information:",null,null,null,null,null,null,null,null,null,"Version","2026-04-07"]
[null,"Church Directory of Organization and Leadership (CDOL) Name:",null,null,null,null,null,null,"Deseret Industries Sign Shop "]
[null,null,null,null,null,null,null,null,"1415 North State Street"]
[null,"Charge to Unit CDOL #",null,"Phone #",null,"Date of Order",null,null,"Provo, UT 84604"]
[null,null,null,null,null,null,null,null,"Please order as an Excel Workbook attachment"]
[null,"Notes:",null,null,null,"USPS","Will Call","FedEx","homestead@churchofjesuschrist.org"]
[null,null,null,null,null,null,null,null,"(801) 240-6645 (Rolo Chavez)"]
[null,"Shipping Information:",null,null,"Typical Orders ship within 48 hours after the order is received."]
[null,"Name / Organization (Please type across the line)",null,null,null,null,null,null,"Phone Number with Area Code & email (Required for FEDEX & International orders)"]
[]
[null,"Street Address (Apt, suite, Unit Number)"]
[]
[null,"City",null,null,null,null,"State/Province",null,null,"Country",null,"Postal Code (ZIP +4)"]
[]
[null,"Purchase Order Number (if applicable)",null,null,null,null,null,null,null,"Enter the desired Quantity in the columns below"]
[]
[null,"Order Information:",null,null,null,null,null,null,null,"Name Tag Type",null,null,"Accessory"]
[null,"ELDER / SISTER LAST NAME\nPlease type in all CAPS         ",null,null,null,"Service Missionary",null,null,"Language","Pin","Magnet ","Pocket ","Johnny Clip"]
[null,null,null,null,null,null,null,null,null,"049900","049902","049905","049910"]
[null,null,null,null,null,null,null,null,null,{"$f":"J67","v":0},{"$f":"K67","v":0},0,0]
[null,null,null,null,null,null,null,null,null,3.7,4.5999999999999996,4.5,1.5]
[1,null,null,null,null,"Service Missionary"]
[2,null,null,null,null,"Service Missionary"]
[3,null,null,null,null,"Service Missionary"]
[4,null,null,null,null,"Service Missionary"]
[5,null,null,null,null,"Service Missionary"]
[6,null,null,null,null,"Service Missionary"]
[7,null,null,null,null,"Service Missionary"]
[8,null,null,null,null,"Service Missionary"]
[9,null,null,null,null,"Service Missionary"]
[10,null,null,null,null,"Service Missionary"]
[11,null,null,null,null,"Service Missionary"]
[12,null,null,null,null,"Service Missionary"]
[13,null,null,null,null,"Service Missionary"]
[14,null,null,null,null,"Service Missionary"]
[15,null,null,null,null,"Service Missionary"]
[16,null,null,null,null,"Service Missionary"]
[17,null,null,null,null,"Service Missionary"]
[18,null,null,null,null,"Service Missionary"]
[19,null,null,null,null,"Service Missionary"]
[20,null,null,null,null,"Service Missionary"]
[21,null,null,null,null,"Service Missionary"]
[22,null,null,null,null,"Service Missionary"]
[23,null,null,null,null,"Service Missionary"]
[24,null,null,null,null,"Service Missionary"]
[25,null,null,null,null,"Service Missionary"]
[26,null,null,null,null,"Service Missionary"]
[27,null,null,null,null,"Service Missionary"]
[28,null,null,null,null,"Service Missionary"]
[29,null,null,null,null,"Service Missionary"]
[30,null,null,null,null,"Service Missionary"]
[31,null,null,null,null,"Service Missionary"]
[32,null,null,null,null,"Service Missionary"]
[33,null,null,null,null,"Service Missionary"]
[34,null,null,null,null,"Service Missionary"]
[35,null,null,null,null,"Service Missionary"]
[36,null,null,null,null,"Service Missionary"]
[37,null,null,null,null,"Service Missionary"]
[38,null,null,null,null,"Service Missionary"]
[39,null,null,null,null,"Service Missionary"]
[40,null,null,null,null,"Service Missionary"]
[]
[null,null,null,null,null,"BadgeTotal",null,null,{"$f":"SUM(J67:L67)","v":0},{"$f":"SUM(J26:J65)","v":0},{"$f":"SUM(K26:K65)","v":0},{"$f":"SUM(L26:L65)","v":0},{"$f":"SUM(M26:M65)","v":0}]
[null,null,null,null,null,"Dollar Total",null,null,{"$f":"SUM(J68:M68)","v":0},{"$f":"J67*J25","v":0},{"$f":"K67*K25","v":0},0,0]
[]
[null,null,null,null,null,null,null,null,null,"Pins Only","Magnets Only","Johnny Clip"]
[null,null,null,null,null,null,"Accessories",null,"Part Number","047090","047092","049910"]
[null,null,null,null,null,null,null,null,"Cost",1.1499999999999999,1.5,1.5]
[]
[null,null,null,null,null,null,"Order Total",null,{"$f":"I68+L74+K74+J74","v":0},{"$f":"J73*J72","v":0},{"$f":"K73*K72","v":0},0]
[null,"Thank You for Your Order"]
[null,null,null,"Pin / Magnet Tag",null,null,null,null,null,null,null,"  Clip"]
[]
[]
[]
[null,null,null,null,null,null,null,null,"Johnny Clip Optional"]
[null,null,null,null,null,null,null,null,"adapts Pin Tag to Clip"]
[null,null,null,null,null,null,null,null,"(Use with Pin Style Only)"]

{"sheet":"Missionary Badge Short Form","index":1,"n_rows":66,"n_cols":13,"rows_kept":66,"cut":false,"hidden":false,"merged":[[41,5,41,7],[42,5,42,7],[43,5,43,7],[44,5,44,7],[45,5,45,7],[41,1,41,4],[42,1,42,4],[43,1,43,4],[44,1,44,4],[45,1,45,4],[17,9,17,10],[17,11,17,12],[39,5,39,7],[36,5,36,7],[18,1,18,8],[38,5,38,7],[17,1,17,5],[17,6,17,8],[25,1,25,4],[26,1,26,4],[27,1,27,4],[28,1,28,4],[29,1,29,4],[30,1,30,4],[21,8,24,8],[31,1,31,4],[59,8,59,12],[60,8,60,12],[61,8,61,12],[53,6,53,7],[56,9,56,10],[56,11,56,12],[0,1,0,12],[5,1,5,7],[7,5,7,6],[5,8,5,12],[6,8,6,12],[7,8,7,12],[6,1,6,7],[1,1,1,12],[2,1,2,12],[3,1,3,12],[8,5,8,7],[8,1,8,2],[7,1,7,2],[7,3,7,4],[8,3,8,4],[14,11,14,12],[16,6,16,8],[16,9,16,10],[9,8,9,12],[10,8,10,12],[13,1,13,7],[15,1,15,12],[11,1,11,3],[11,4,11,12],[12,1,12,7],[12,8,12,12],[9,1,9,4],[10,1,10,4],[8,8,8,12],[54,1,54,5],[38,1,40,4],[16,11,16,12],[16,1,16,5],[18,9,19,12],[46,5,46,7],[20,1,20,8],[20,9,20,11],[19,1,19,8],[38,8,40,8],[50,8,51,8],[35,5,35,7],[47,5,47,7],[13,8,13,9],[14,1,14,10],[32,1,32,4],[33,1,33,4],[34,1,34,4],[21,1,24,4],[21,5,24,7]]}
[null,"Service Missionary & Non-Missionary Name Tag Order"]
[null,"Attention: All orders must be billed to Church units exclusively through the Church’s Internal Record of Purchase (IROP) system."]
[null,"Insert the associated Unit Name & # as recorded in the Church Directory of Organization and Leadership (CDOL) in the boxes below. "]
[null,"The unit number can also be found on the monthly CFAR bank statement."]
[null,"Billing Information:",null,null,null,null,null,null,null,null,null,"Version",{"$f":"M65","v":"2026-04-07"}]
[null,"Church Directory of Organization and Leadership (CDOL) Name:",null,null,null,null,null,null,"Deseret Industries Sign Shop "]
[null,null,null,null,null,null,null,null,"1415 North State Street"]
[null,"Charge to Unit CDOL #",null,"Phone #",null,"Date of Order",null,null,"Provo, UT 84604"]
[null,null,null,null,null,null,null,null,"Please order as an Excel Workbook attachment"]
[null,"Notes:",null,null,null,"USPS","Will Call","FedEx","homestead@churchofjesuschrist.org"]
[null,null,null,null,null,null,null,null,"(801) 240-6645 (Rolo Chavez)"]
[null,"Shipping Information:",null,null,"Typical Orders ship within 48 hours after the order is received."]
[null,"Name / Organization (Please type across the line)",null,null,null,null,null,null,"Phone Number with Area Code & email (Required for FEDEX & International orders)"]
[]
[null,"Street Address (Apt, suite, Unit Number)"]
[]
[null,"City",null,null,null,null,"State/Province",null,null,"Country",null,"Postal Code (ZIP +4)"]
[]
[null,"Purchase Order Number (if applicable)",null,null,null,null,null,null,null,"Enter the desired Quantity in the columns below"]
[]
[null,"Order Information:",null,null,null,null,null,null,null,"Name Tag Type",null,null,"Accessory"]
[null,"ELDER / SISTER LAST NAME\nPlease type in all CAPS         ",null,null,null,"Service Missionary",null,null,"Language","Pin","Magnet ","Pocket ","Johnny Clip"]
[null,null,null,null,null,null,null,null,null,"049900","049902","049905","049910"]
[null,null,null,null,null,null,null,null,null,{"$f":"J36","v":0},{"$f":"K36","v":0},0,0]
[null,null,null,null,null,null,null,null,null,3.7,4.5999999999999996,4.5,1.5]
[1,null,null,null,null,"Service Missionary"]
[2,null,null,null,null,"Service Missionary"]
[3,null,null,null,null,"Service Missionary"]
[4,null,null,null,null,"Service Missionary"]
[5,null,null,null,null,"Service Missionary"]
[6,null,null,null,null,"Service Missionary"]
[7,null,null,null,null,"Service Missionary"]
[8,null,null,null,null,"Service Missionary"]
[9,null,null,null,null,"Service Missionary"]
[10,null,null,null,null,"Service Missionary"]
[null,"USE LONG FORM FOR ADDITIONAL TAGS",null,null,null,"BadgeTotal",null,null,{"$f":"SUM(J36:L36)","v":0},{"$f":"SUM(J26:J35)","v":0},{"$f":"SUM(K26:K35)","v":0},{"$f":"SUM(L26:L35)","v":0},{"$f":"SUM(M26:M35)","v":0}]
[null,null,null,null,null,"Dollar Total",null,null,{"$f":"SUM(J37:M37)","v":0},{"$f":"J36*J25","v":0},{"$f":"K36*K25","v":0},0,0]
[null,null,null,null,null,null,null,null,null,null,null,null,"  "]
[null,"BROTHER / SISTER LAST NAME            ",null,null,null,"Title",null,null,"Language","Pin","Magnet ","Johnny Clip"]
[null,null,null,null,null,"If Needed",null,null,null,2.5,3.5,1.5]
[null,null,null,null,null,null,null,null,null,"049901","049903","049910"]
[1]
[2]
[3]
[4]
[5]
[null,null,null,null,null,"Total Badges",null,null,{"$f":"J47+K47+L47","v":0},{"$f":"SUM(J42:J46)","v":0},{"$f":"SUM(K42:K46)","v":0},0]
[null,null,null,null,null,"Total Cost",null,null,{"$f":"SUM(J48:L48)","v":0},{"$f":"J47*J40","v":0},{"$f":"K47*K40","v":0},{"$f":"L47*L40","v":0}]
[]
[null,null,null,null,null,null,null,null,null,"Pins Only","Magnets Only","Johnny Clip"]
[null,null,null,null,null,null,null,null,"Accessories","047090","047092","049910"]
[null,null,null,null,null,null,null,null,null,1.1499999999999999,1.5,1.5]
[]
[null,null,null,null,null,null,"Order Total",null,{"$f":"J54+K54+L54","v":0},{"$f":"J53*J52","v":0},{"$f":"K53*K52","v":0},0]
[null,"Thank You for Your Order"]
[null,null,null,"Pin / Magnet Tag"]
[]
[]
[]
[null,null,null,null,null,null,null,null,"Johnny Clip Optional"]
[null,null,null,null,null,null,null,null,"adapts Pin Tag to Clip"]
[null,null,null,null,null,null,null,null,"(Use with Pin Style Only)"]
[]
[]
[null,null,null,null,null,null,null,null,null,null,null,"Version","2026-04-07"]
[null,"V.9074"]